bitfinex-derivatives/quotes_ETHF0:USTF0_20260208
["timestamp","ask_amount","ask_price","bid_price","bid_amount"]
[1770539668910,13.54793484,2122.7,2120.5,6.86992101]
[1770539669112,11.3608539,2122.5,2120.1,6.86992101]
[1770539669317,11.3608539,2122.5,2120.6,6.01768643]
[1770539669710,11.3608539,2122.5,2120.1,6.01768643]
[1770539669711,11.3608939,2122.2,2120.0,0.00429047]
[1770539669914,11.3608939,2122.2,2120.1,6.65091264]
[1770539670212,11.1250839,2122.2,2120.2,6.65091264]
[1770539670414,11.1250839,2122.7,2120.5,6.65091264]
[1770539670614,11.1250839,2122.7,2120.4,3.50849094]
[1770539670615,11.1250839,2122.7,2121.0,6.65091264]
[1770539671213,11.1250839,2122.7,2121.1,12.64307945]
[1770539671620,11.1250839,2122.7,2121.1,6.44003208]
[1770539671815,11.1250839,2122.7,2121.3,6.3702834]
[1770539672215,11.1250839,2122.7,2120.9,6.09592394]
[1770539672415,11.1250839,2122.7,2120.5,6.09592394]
[1770539672720,11.1250839,2122.7,2120.3,2.42285094]
[1770539672721,11.1250839,2122.7,2121.1,6.09592394]
[1770539673118,11.1250839,2122.7,2121.2,6.07916698]
[1770539673317,11.1250839,2122.7,2120.6,5.8087522]
[1770539673318,11.1250839,2122.5,2120.6,5.8087522]
[1770539673614,11.1250839,2122.5,2120.8,5.64152512]
[1770539673819,40.8,2122.4,2120.8,5.64152512]
[1770539674018,11.1250839,2122.5,2121.0,5.64152512]
[1770539674215,0.0060363,2123.3,2121.8,5.3575515]
[1770539674412,11.1311202,2123.3,2121.8,0.00416172]
[1770539674624,11.1250839,2123.1,2121.8,0.00416172]
[1770539676223,40.8,2123.2,2121.8,0.00416172]
[1770539676224,10.11023766,2122.9,2121.8,0.00416172]
[1770539676519,10.11023766,2122.1,2120.3,4.72931884]
[1770539677024,10.11023766,2122.1,2120.8,4.72931884]
[1770539677426,10.11023766,2122.1,2120.9,6.15617777]
[1770539677623,10.11023766,2122.1,2121.0,4.22378362]
[1770539677826,10.11023766,2122.4,2121.0,4.22378362]
[1770539678018,10.11023766,2122.4,2121.0,10.41263467]
[1770539678221,10.11023766,2122.4,2121.0,4.22378362]
[1770539678726,10.34602766,2122.4,2120.8,0.00605586]
[1770539679620,10.34602766,2122.4,2120.9,6.03867303]
[1770539679817,10.34602766,2122.4,2120.8,0.00605586]
[1770539680016,10.11023766,2121.7,2120.8,0.00605586]
[1770539680222,10.11023766,2121.4,2119.6,3.5959977]
[1770539680424,10.34619766,2120.9,2119.3,3.5959977]
[1770539680626,10.11023766,2120.7,2118.8,3.5959977]
[1770539680825,10.11023766,2120.7,2119.1,6.01560575]
[1770539681024,10.11023766,2120.7,2119.1,3.5959977]
[1770539681325,10.11023766,2120.7,2119.3,3.3326918]
[1770539681822,10.11023766,2121.6,2119.9,3.5687518]
[1770539682224,10.11023766,2121.6,2120.1,3.07619927]
[1770539682625,10.11023766,2121.6,2120.2,6.06307156]
[1770539682827,10.11023766,2121.6,2120.3,3.32895231]
[1770539683034,10.11023766,2121.6,2120.5,3.09293231]
[1770539683328,0.00533101,2121.7,2120.7,2.83970966]
[1770539683532,0.00533101,2121.7,2120.7,2.84370357]
[1770539684031,10.11556867,2121.7,2120.7,0.00399391]
[1770539685625,5.851,2123.7,2120.7,0.00399391]
[1770539685626,10.11023766,2122.7,2121.1,2.23759539]
[1770539685835,10.11023766,2122.7,2121.0,0.23593]
[1770539686336,10.11023766,2122.0,2120.7,0.00399391]
[1770539686634,10.11023766,2121.5,2120.7,0.00399391]
[1770539687539,10.11023766,2121.9,2120.8,6.06419391]
[1770539687834,0.00343794,2122.0,2120.9,1.84233399]
[1770539688030,10.1136756,2122.0,2120.9,1.84233399]
[1770539688726,10.1136756,2122.0,2120.7,0.00399391]
[1770539689032,10.11023766,2120.7,2119.1,1.63185187]
[1770539689328,10.11023766,2120.7,2119.3,7.6749857]
[1770539689524,10.11023766,2120.7,2119.4,1.53899357]
[1770539689737,10.11023766,2120.7,2119.5,1.53899357]
[1770539689927,10.11023766,2120.7,2119.7,1.53899357]
[1770539690127,10.11023766,2120.7,2119.5,0.00360516]
[1770539690828,10.11023766,2120.7,2119.6,1.32159406]
[1770539691022,10.11023766,2120.7,2119.7,1.32159406]
[1770539691227,10.11023766,2120.7,2119.7,5.8101022]
[1770539691427,10.11023766,2120.7,2119.8,6.00181598]
[1770539691730,10.11023766,2121.3,2120.0,1.27986062]
[1770539691927,10.11023766,2121.3,2120.1,1.97603808]
[1770539691928,9.6501002,2121.3,2120.1,1.97603808]
[1770539692128,9.6501002,2121.3,2120.2,1.73999808]
[1770539692329,9.6501002,2121.3,2120.2,6.22704335]
[1770539692633,9.6501002,2121.3,2120.3,7.57342234]
[1770539692930,9.6501002,2121.3,2120.3,1.52642103]
[1770539693134,9.6501002,2121.3,2120.2,8.93860476]
[1770539693341,9.6501002,2121.3,2120.1,2.92524713]
[1770539693630,9.03660784,2121.3,2120.1,2.68921713]
[1770539693840,9.03660784,2121.3,2119.6,6.6144856]
[1770539693841,9.03660784,2121.3,2119.6,2.68921713]
[1770539694035,10.11023766,2120.9,2119.5,0.00360516]
[1770539694233,10.1136756,2122.0,2119.7,1.65339412]
[1770539694536,10.1136756,2122.0,2120.5,1.65339412]
[1770539694537,10.11023766,2121.9,2120.5,1.65339412]
[1770539695232,10.11023766,2121.9,2120.8,2.68921713]
[1770539695625,10.11023766,2121.9,2120.3,2.68921713]
[1770539695841,10.11023766,2121.1,2119.8,2.68921713]
[1770539696030,10.11023766,2121.1,2119.7,1.42353498]
[1770539696333,10.34617766,2121.1,2119.5,3.9138962]
[1770539696537,10.34617766,2121.1,2119.5,0.00360516]
[1770539697135,10.11023766,2120.9,2119.5,0.00360516]
[1770539698130,10.34618766,2120.9,2119.5,0.00360516]
[1770539698540,10.34618766,2120.9,2118.8,2.68921713]
[1770539699033,10.34618766,2120.9,2119.0,3.874456]
[1770539699034,10.11023766,2120.9,2119.0,3.874456]
[1770539699234,10.11023766,2120.9,2119.0,8.37243422]
[1770539699441,10.11023766,2120.9,2119.1,6.07516785]
[1770539699737,10.11023766,2120.9,2119.3,3.7181946]
[1770539699936,10.11023766,2120.9,2119.3,2.68921713]
[1770539700140,10.11023766,2120.7,2119.1,2.68921713]
[1770539700331,10.11023766,2120.2,2119.0,0.00545825]
[1770539700535,10.11374237,2120.2,2119.0,0.00545825]
[1770539700832,10.11374237,2120.2,2119.1,0.83965786]
[1770539701037,10.11023766,2120.5,2119.3,3.52887499]
[1770539701333,6.98872687,2122.2,2119.1,10.37450521]
[1770539701334,50.91023766,2121.2,2120.2,2.68921713]
[1770539701535,50.86923786,2121.2,2120.2,4.21286666]
[1770539701839,10.11023766,2122.1,2120.4,2.68921713]
[1770539702031,10.11588143,2122.1,2120.5,1.56464933]
[1770539702234,10.11023766,2121.9,2120.5,8.91628448]
[1770539702429,10.11023766,2121.9,2120.5,1.38581765]
[1770539702832,10.11023766,2121.9,2120.5,0.00549373]
[1770539703037,10.11023766,2121.6,2120.5,0.00549373]
[1770539703635,10.11023766,2121.6,2119.7,5.24690315]
[1770539703636,10.11023766,2120.9,2119.8,2.69300619]
[1770539703832,10.11023766,2120.9,2119.4,3.90589378]
[1770539704038,10.11023766,2120.9,2119.7,1.21288759]
[1770539704233,10.11023766,2120.9,2119.8,1.03279729]
[1770539704433,10.11023766,2120.9,2119.8,6.1505599]
[1770539704638,10.11023766,2120.9,2119.8,0.00379533]
[1770539704842,10.11023766,2120.9,2119.8,2.69680152]
[1770539705041,0.23586,2121.7,2119.9,1.03279729]
[1770539705235,10.11023766,2121.6,2120.0,1.03279729]
[1770539705637,10.11023766,2121.6,2119.9,2.69300619]
[1770539705837,10.11023766,2121.6,2119.8,2.69680152]
[1770539705838,7.37480678,2121.4,2119.8,2.69680152]
[1770539706042,7.37480678,2121.4,2119.8,0.00379533]
[1770539706244,7.61070678,2121.4,2119.8,0.00379533]
[1770539706842,7.37480678,2121.4,2119.8,0.1337151]
[1770539707046,7.37480678,2121.4,2119.9,8.82527114]
[1770539707346,7.61073678,2121.1,2119.8,0.00379533]
[1770539707543,1.08501,2121.7,2119.1,2.69300619]
[1770539707544,7.37480678,2120.7,2119.1,2.69300619]
[1770539707743,7.37480678,2120.5,2118.9,2.69300619]
[1770539707943,7.37480678,2120.5,2118.8,2.69300619]
[1770539708248,7.37480678,2120.5,2118.7,2.69300619]
[1770539708445,7.37974876,2120.5,2118.7,0.00485552]
[1770539708639,7.37480678,2120.2,2118.7,0.00485552]
[1770539709041,7.37480678,2120.2,2118.8,6.11540584]
[1770539709241,7.37480678,2120.2,2118.8,8.80841203]
[1770539709440,7.37480678,2120.2,2118.9,4.5122037]
[1770539709639,7.37480678,2120.2,2118.8,2.69300619]
[1770539711150,7.37480678,2120.2,2118.8,7.20558666]
[1770539711345,7.37480678,2120.2,2118.7,2.69786171]
[1770539711650,7.37480678,2120.2,2119.0,2.69300619]
[1770539711849,7.37480678,2120.2,2118.8,8.73757887]
[1770539712044,7.37480678,2120.2,2118.7,2.69786171]
[1770539712546,9.79765772,2120.2,2118.7,0.00485552]
[1770539712750,7.37480678,2120.1,2118.7,0.00485552]
[1770539712946,7.37480678,2119.9,2118.3,2.69300619]
[1770539713144,7.37480678,2119.4,2118.2,2.69300619]
[1770539713347,7.37480678,2119.4,2118.0,2.69300619]
[1770539713547,7.37480678,2119.4,2117.8,2.69300619]
[1770539713856,7.37480678,2119.4,2118.1,2.69300619]
[1770539714050,7.37480678,2119.4,2118.3,2.69300619]
[1770539714255,7.37480678,2119.4,2118.5,2.69300619]
[1770539714553,7.37480678,2119.4,2118.6,2.69300619]
[1770539714749,7.37480678,2119.4,2118.5,2.69300619]
[1770539714951,7.37480678,2119.4,2118.1,2.69748737]
[1770539715344,40.8,2119.5,2117.7,2.7043395]
[1770539715345,7.27526938,2118.9,2117.7,2.7043395]
[1770539715546,7.27526938,2118.9,2117.0,4.27588929]
[1770539716151,7.27526938,2118.9,2117.0,0.23638]
[1770539716352,7.51519242,2118.9,2117.0,0.00601764]
[1770539716552,7.26735643,2118.6,2117.0,0.00601764]
[1770539717154,7.26735643,2118.4,2117.0,0.00601764]
[1770539717355,7.25201798,2118.2,2116.3,4.03950929]
[1770539717652,7.25201798,2118.2,2116.6,6.20418604]
[1770539718043,7.25201798,2118.2,2116.3,10.48015533]
[1770539718044,7.25201798,2118.2,2116.3,4.27596929]
[1770539718248,7.25201798,2118.2,2116.2,4.03950929]
[1770539718455,7.4807358,2118.0,2116.2,0.00594134]
[1770539718845,7.2444558,2117.4,2116.2,0.00594134]
[1770539719049,7.2492405,2117.4,2116.2,0.00594134]
[1770539719951,7.2492405,2117.4,2115.4,4.03950929]
[1770539720151,7.2492405,2117.4,2115.4,0.23656]
[1770539720345,7.2492405,2117.4,2115.5,6.04943354]
[1770539720658,7.2492405,2117.4,2115.4,0.23656]
[1770539720853,7.2492405,2117.4,2115.9,0.2365]
[1770539721052,7.2492405,2117.4,2115.9,27.71022962]
[1770539721948,7.2492405,2117.4,2115.9,0.24122962]
[1770539722151,7.2492405,2117.4,2115.9,0.00472962]
[1770539722550,7.15409824,2117.2,2115.9,0.00472962]
[1770539723055,7.15409824,2117.2,2116.1,0.23648]
[1770539723753,7.15409824,2117.2,2116.2,6.20963826]
[1770539724153,7.15370021,2117.4,2116.3,0.23646]
[1770539724457,40.8,2117.3,2116.4,6.16187604]
[1770539724749,40.8,2117.3,2116.3,0.23646]
[1770539724957,40.8,2117.3,2115.9,0.00472962]
[1770539724958,7.14891551,2117.2,2115.9,0.00472962]
[1770539725150,7.14891551,2117.2,2116.4,6.24781476]
[1770539725457,7.09826849,2117.4,2116.4,6.24781476]
[1770539725656,7.09826849,2117.4,2116.2,0.23647]
[1770539725952,7.09348379,2117.2,2115.9,0.00472962]
[1770539726147,7.09348379,2117.2,2116.3,6.02215845]
[1770539726347,7.09348379,2117.2,2116.2,0.23647]
[1770539726553,40.8,2117.3,2116.4,6.25860845]
[1770539726754,0.0047847,2117.4,2116.5,0.23644]
[1770539726954,7.09260321,2117.4,2116.5,0.23644]
[1770539727158,7.09260321,2117.4,2116.6,6.03570639]
[1770539727353,0.0047847,2117.4,2116.6,0.23642]
[1770539728156,6.88338268,2117.4,2116.6,0.23642]
[1770539728653,6.88338268,2117.4,2116.0,0.23649]
[1770539728855,6.88338268,2117.4,2116.1,0.23649]
[1770539729262,6.88338268,2117.4,2115.9,0.00472962]
[1770539730061,6.88338268,2117.4,2116.0,6.38544699]
[1770539730462,6.88338268,2117.4,2116.0,0.23649]
[1770539730664,6.88338268,2117.4,2116.4,0.23645]
[1770539731564,6.88338268,2117.4,2116.5,6.25427471]
[1770539732669,6.88338268,2117.4,2116.5,6.49071471]
[1770539733571,6.88338268,2117.4,2116.6,0.23643]
[1770539733963,6.88338268,2117.4,2116.7,6.1169967]
[1770539734160,6.88338268,2117.4,2116.0,0.23649]
[1770539734473,6.88338268,2117.4,2116.4,0.23645]
[1770539735973,6.88338268,2117.4,2116.5,6.15246343]
[1770539736169,5.42068268,2117.4,2116.5,6.15246343]
[1770539736371,5.82581599,2118.3,2117.3,0.23635]
[1770539736566,5.82581599,2118.3,2117.0,4.03950929]
[1770539736771,40.8,2118.2,2117.0,4.03950929]
[1770539736972,5.82581599,2118.1,2117.1,6.2265768]
[1770539737174,5.83101337,2118.1,2117.2,0.23636]
[1770539737376,5.80889667,2119.1,2117.9,0.23628]
[1770539737768,5.80889667,2118.9,2117.6,4.03950929]
[1770539738078,5.80889667,2118.9,2117.7,6.21915128]
[1770539738273,0.0041337,2118.9,2117.9,0.21467749]
[1770539738474,0.23604,2120.2,2117.7,11.61463977]
[1770539738475,4.9690651,2119.5,2118.4,0.80521863]
[1770539738672,4.9690651,2119.5,2118.1,4.03950929]
[1770539738873,4.9690651,2119.3,2118.2,0.80521863]
[1770539739072,4.9690651,2119.3,2118.4,6.19419541]
[1770539739368,4.9690651,2119.3,2118.3,1.04145863]
[1770539739576,4.97380258,2119.3,2118.3,1.04145863]
[1770539739876,4.97380258,2119.3,2118.4,6.19419541]
[1770539740071,0.00473748,2119.3,2118.5,0.79111319]
[1770539740376,4.97380258,2119.3,2118.3,4.03950929]
[1770539740572,4.97380258,2119.3,2118.3,8.55451919]
[1770539740773,4.97380258,2119.3,2118.2,32.11441584]
[1770539740973,4.97380258,2119.3,2118.3,4.51548384]
[1770539741169,4.97380258,2119.3,2118.3,11.63085933]
[1770539741373,4.97380258,2119.3,2118.4,5.20038104]
[1770539741572,4.97380258,2119.3,2118.3,6.27546894]
[1770539741780,4.9690651,2119.1,2118.2,31.27450929]
[1770539741981,4.9690651,2119.1,2118.2,27.235]
[1770539742481,4.9690651,2119.1,2117.7,0.55307235]
[1770539742671,4.9690651,2119.1,2117.7,4.59258164]
[1770539742978,4.9690651,2119.1,2118.1,0.78442393]
[1770539743177,4.9790651,2119.1,2117.9,4.52133483]
[1770539743575,4.9790651,2119.1,2117.7,4.04441771]
[1770539743879,4.9790651,2119.1,2117.8,4.52153487]
[1770539744078,4.9790651,2119.1,2117.7,0.00490842]
[1770539744783,4.9790651,2119.1,2117.7,4.04441771]
[1770539745082,4.9790651,2119.1,2117.7,0.00490842]
[1770539745800,4.9690651,2118.9,2117.7,0.00490842]
[1770539746897,5.2052451,2118.9,2117.1,4.27587929]
[1770539747092,5.2052451,2118.9,2117.1,8.80322786]
[1770539747299,4.9690651,2118.3,2117.2,4.52734857]
[1770539747593,4.9690651,2118.3,2117.1,4.03950929]
[1770539747790,4.9690651,2118.3,2117.1,4.04333988]
[1770539748192,4.9690651,2118.3,2117.1,0.00383059]
[1770539748991,4.9690651,2118.2,2117.1,0.00383059]
[1770539749195,4.9690651,2118.2,2116.6,4.27593929]
[1770539749389,4.9690651,2118.2,2116.7,4.03950929]
[1770539749596,4.9690651,2118.2,2116.8,4.03950929]
[1770539750095,4.9690651,2118.2,2116.9,6.04711567]
[1770539750297,4.9690651,2118.2,2116.9,0.00596377]
[1770539750989,4.9690651,2118.2,2116.3,9.43008936]
[1770539751194,4.9690651,2117.9,2116.4,8.57522194]
[1770539751397,4.9690651,2117.9,2116.5,4.53571265]
[1770539751894,4.9690651,2117.9,2116.6,10.19160567]
[1770539752099,4.9690651,2117.9,2116.7,4.53571265]
[1770539752493,4.9690651,2117.9,2116.6,4.04335618]
[1770539753090,40.8,2117.8,2116.6,4.04335618]
[1770539753294,4.9690651,2117.7,2116.6,0.00384689]
[1770539758601,4.9690651,2117.5,2116.1,4.03950929]
[1770539758794,4.9690651,2117.5,2115.9,4.03950929]
[1770539759000,4.9690651,2117.5,2116.0,4.27599929]
[1770539759205,4.9690651,2117.5,2116.1,6.09184048]
[1770539759406,4.9690651,2117.5,2116.0,4.27599929]
[1770539759705,4.9690651,2117.5,2116.0,4.28077744]
[1770539760898,5.2053951,2117.5,2116.0,0.00477815]
[1770539761500,4.9690651,2117.2,2116.0,0.00477815]
[1770539761702,4.9690651,2117.1,2116.0,0.00477815]
[1770539762507,4.9690651,2116.7,2115.2,4.03950929]
[1770539762808,4.9690651,2116.5,2115.3,14.84351066]
[1770539763007,4.9690651,2116.5,2115.4,4.54199148]
[1770539763404,4.9690651,2116.5,2115.4,4.54708177]
[1770539763702,4.9690651,2116.5,2115.4,0.00509029]
[1770539764208,4.9690651,2116.3,2115.4,0.00509029]
[1770539764409,4.97304139,2116.3,2115.4,0.00509029]
[1770539765109,4.97304139,2116.3,2114.8,4.03950929]
[1770539765312,4.9690651,2116.2,2114.7,4.03950929]
[1770539765611,4.9690651,2116.2,2114.9,6.11321396]
[1770539765811,4.9690651,2116.2,2115.0,0.23661]
[1770539766013,4.9690651,2116.2,2115.2,0.23659]
[1770539766412,4.9690651,2116.2,2115.3,6.14140985]
[1770539766608,4.9690651,2116.2,2115.3,0.23657]
[1770539767112,0.00397629,2116.3,2115.1,31.20850929]
[1770539767113,0.00397629,2116.3,2115.4,6.16889987]
[1770539767312,4.13581457,2116.3,2115.2,4.03950929]
[1770539767609,3.87832643,2117.4,2115.8,0.23652]
[1770539767814,3.87832643,2117.2,2115.8,27.40552]
[1770539768013,3.87832643,2117.2,2115.9,6.23411612]
[1770539768211,3.87832643,2117.2,2115.8,27.40552]
[1770539768515,3.88215603,2117.2,2115.8,27.40552]
[1770539769011,3.88215603,2117.2,2115.4,4.03950929]
[1770539769216,3.88215603,2117.2,2115.2,0.23658]
[1770539769513,3.86577425,2116.9,2115.3,6.43537107]
[1770539769913,3.86577425,2116.9,2115.3,0.23657]
[1770539770114,3.86577425,2116.7,2115.1,27.183]
[1770539770315,4.10219425,2116.7,2115.1,27.183]
[1770539770809,4.10219425,2116.7,2115.0,0.00361479]
[1770539772317,3.86577425,2116.7,2115.2,0.23659]
[1770539772716,3.86577425,2116.7,2115.3,6.42959049]
[1770539773118,3.86577425,2116.7,2115.3,0.23658]
[1770539773319,3.86806221,2116.5,2115.2,4.5428733]
[1770539773522,3.86806221,2116.5,2115.0,0.00361479]
[1770539774421,3.86806221,2116.5,2115.1,6.49127298]
[1770539774721,3.86806221,2116.5,2115.1,10.29419227]
[1770539775017,3.86806221,2116.5,2115.5,4.27605929]
[1770539775419,3.86806221,2116.5,2115.7,2.71321164]
[1770539775717,3.86806221,2116.5,2115.6,2.94975164]
[1770539775919,3.86806221,2116.5,2115.7,2.71321164]
[1770539776315,3.86806221,2116.5,2115.6,4.03950929]
[1770539776316,3.86806221,2116.5,2115.5,2.71321164]
[1770539776514,3.86806221,2116.5,2115.4,2.71321164]
[1770539776819,3.86806221,2116.5,2115.7,2.71321164]
[1770539777219,3.86806221,2116.5,2115.8,13.32204514]
[1770539777420,3.86806221,2116.5,2115.8,2.71321164]
[1770539777824,0.01,2116.7,2115.9,8.77023962]
[1770539778015,3.84906528,2116.8,2116.0,7.26825941]
[1770539778215,3.84906528,2116.8,2116.0,2.71321164]
[1770539778416,40.8,2116.7,2116.2,2.71321164]
[1770539778620,3.84906528,2116.8,2116.2,2.71321164]
[1770539778918,3.84906528,2116.8,2116.3,7.26968552]
[1770539779118,3.84906528,2116.8,2116.2,2.71321164]
[1770539779318,3.84906528,2116.8,2116.0,2.71321164]
[1770539779623,3.84906528,2116.8,2115.8,4.55752053]
[1770539779923,40.8,2117.1,2115.1,4.03950929]
[1770539779924,2.81280596,2116.6,2115.1,4.03950929]
[1770539780119,2.81280596,2116.6,2115.1,8.60011949]
[1770539780631,3.04924596,2116.6,2115.0,4.04312408]
[1770539780826,2.81280596,2116.4,2115.0,0.00361479]
[1770539781825,2.81280596,2116.4,2115.4,0.63731597]
[1770539782020,2.81280596,2116.4,2115.3,35.62085601]
[1770539782227,2.81280596,2116.4,2115.4,4.48834672]
[1770539782625,2.81280596,2116.4,2115.1,4.03950929]
[1770539782829,2.81280596,2116.4,2115.1,4.48895663]
[1770539783531,2.81280596,2116.4,2115.2,8.98471594]
[1770539783828,2.81280596,2116.4,2115.2,8.52846592]
[1770539784132,2.81280596,2116.4,2115.3,4.48895663]
[1770539784327,2.81280596,2116.4,2115.4,4.48927534]
[1770539784527,43.61280596,2116.3,2115.5,4.86578439]
[1770539784829,43.61280596,2116.3,2115.5,8.90529368]
[1770539785028,43.61280596,2116.3,2115.6,8.52878463]
[1770539785423,2.81280596,2116.2,2115.6,8.52878463]
[1770539785629,2.04427216,2116.2,2115.7,4.48927534]
[1770539786024,2.81280596,2117.1,2115.9,2.82855165]
[1770539786228,2.81280596,2117.1,2116.0,11.35733628]
[1770539786528,2.81280596,2117.1,2116.1,8.52878463]
[1770539786739,2.81280596,2117.1,2116.2,4.48927534]
[1770539786926,2.81280596,2116.9,2116.0,4.03950929]
[1770539787132,2.81280596,2116.9,2116.0,8.5289937]
[1770539787332,2.81280596,2116.9,2115.7,4.03950929]
[1770539787528,2.81280596,2116.9,2115.8,4.4941404]
[1770539788235,2.81280596,2116.9,2115.7,4.03950929]
[1770539788436,2.81280596,2116.9,2115.8,4.49704841]
[1770539788631,2.81280596,2116.9,2115.9,4.49704841]
[1770539788831,2.81280596,2116.9,2115.7,4.03950929]
[1770539789030,2.81280596,2116.9,2115.8,4.49749333]
[1770539789234,2.81280596,2116.9,2115.6,4.03950929]
[1770539789537,2.81280596,2116.9,2115.7,4.49922678]
[1770539789735,2.81280596,2116.9,2115.8,4.49922678]
[1770539790330,2.81280596,2116.9,2115.7,4.03950929]
[1770539790526,2.81280596,2116.9,2115.8,4.49941711]
[1770539790732,2.81280596,2116.9,2115.8,7.32796876]
[1770539790933,2.81280596,2116.9,2116.0,0.23649]
[1770539791236,2.81280596,2116.9,2116.1,4.49941711]
[1770539791436,2.81280596,2116.9,2116.2,4.49941711]
[1770539791635,2.81280596,2116.9,2116.0,7.10455094]
[1770539791935,2.81280596,2116.9,2116.1,8.53704397]
[1770539792136,2.81280596,2116.9,2116.2,4.49753468]
[1770539792334,2.81280596,2116.9,2116.0,12.49513101]
[1770539792527,40.8,2116.8,2116.2,4.03950929]
[1770539792727,2.81280596,2116.7,2116.3,4.49800078]
[1770539792937,2.81280596,2116.7,2115.9,4.03950929]
[1770539793131,2.81280596,2116.7,2116.0,4.49880305]
[1770539794035,2.81280596,2116.7,2115.7,4.03950929]
[1770539794337,2.81280596,2116.7,2115.8,4.50036648]
[1770539794539,2.81280596,2116.7,2115.6,4.03950929]
[1770539794734,2.81280596,2116.7,2115.7,4.50135693]
[1770539794935,2.81280596,2116.7,2115.8,4.50133636]
[1770539795133,2.81280596,2116.7,2115.6,4.03950929]
[1770539795339,2.81280596,2116.7,2115.7,4.50183567]
[1770539796135,2.81280596,2116.7,2115.6,6.37812312]
[1770539796434,40.8,2116.8,2116.1,2.33861383]
[1770539796632,40.8,2116.8,2116.2,10.87989913]
[1770539796831,0.0038296,2117.2,2116.5,4.03950929]
[1770539797030,2.19303959,2118.1,2117.1,2.33861383]
[1770539797234,2.19303959,2118.1,2117.2,4.50177601]
[1770539797436,2.19303959,2118.1,2117.2,6.84038984]
[1770539797632,2.19303959,2118.1,2117.3,10.87989913]
[1770539797830,40.8,2118.0,2117.4,4.50177601]
[1770539798031,40.8036951,2118.0,2117.4,4.50177601]
[1770539798234,40.8036951,2118.0,2117.3,2.33861383]
[1770539798546,2.19303959,2118.7,2117.6,6.37812312]
[1770539798750,2.19303959,2118.7,2117.8,2.33861383]
[1770539799040,2.19303959,2119.0,2117.9,2.33861383]
[1770539799240,2.19303959,2119.0,2118.0,4.03950929]
[1770539799434,2.19781276,2119.0,2118.0,0.00473268]
[1770539799641,2.19303959,2118.8,2118.0,0.00473268]
[1770539800238,2.19303959,2118.8,2117.1,29.38336194]
[1770539800541,32.74803959,2118.8,2117.1,2.26136194]
[1770539800845,2.19303959,2118.7,2117.1,2.26136194]
[1770539801149,2.19303959,2118.7,2117.2,2.26302136]
[1770539801640,2.19303959,2118.7,2117.3,2.20147169]
[1770539801835,2.19303959,2118.7,2117.1,2.20625903]
[1770539803041,2.19303959,2118.7,2117.1,0.00478734]
[1770539803247,2.19303959,2118.0,2116.4,4.27595929]
[1770539803541,2.19303959,2118.0,2116.4,2.06958565]
[1770539804242,2.19303959,2118.0,2116.4,2.0737008]
[1770539806751,2.19303959,2118.0,2116.4,2.3101508]
[1770539807049,2.19303959,2118.0,2116.6,2.10817278]
[1770539807344,2.19303959,2118.0,2116.8,1.76855186]
[1770539807752,2.19303959,2117.8,2116.8,1.76855186]
[1770539808150,2.19303959,2117.8,2116.8,2.00496186]
[1770539808447,2.19303959,2118.7,2117.3,0.23635]
[1770539808660,2.19303959,2118.7,2117.4,0.23634]
[1770539808950,2.19303959,2118.7,2117.4,6.16483355]
[1770539809552,2.19303959,2118.5,2117.4,6.16483355]
[1770539809942,2.19303959,2118.5,2117.0,0.23638]
[1770539810151,2.19303959,2118.5,2117.1,0.03149614]
[1770539810449,2.19303959,2118.5,2117.1,6.16896817]
[1770539810648,2.19303959,2118.5,2117.2,0.02877384]
[1770539811048,2.19303959,2118.5,2117.3,6.13747203]
[1770539813453,2.19303959,2118.5,2117.3,6.37382203]
[1770539813650,40.8,2118.6,2117.4,2.43861895]
[1770539813851,40.8,2118.6,2117.9,0.23628]
[1770539814155,0.00477317,2119.0,2118.0,6.07384773]
[1770539814646,40.8,2118.9,2118.0,6.07384773]
[1770539814847,2.19781276,2119.0,2118.1,0.23626]
[1770539815341,40.8,2118.9,2118.1,0.23626]
[1770539815745,2.19303959,2118.8,2118.0,6.07384773]
[1770539816047,2.19303959,2118.8,2117.9,0.00362855]
[1770539816247,2.19303959,2118.8,2117.2,4.44004009]
[1770539816448,2.19303959,2118.8,2117.3,0.23635]
[1770539817151,2.19303959,2118.8,2117.5,0.23633]
[1770539818254,2.19303959,2118.8,2117.7,0.2363]
[1770539818552,2.19303959,2118.8,2117.8,6.27159991]
[1770539819149,0.00477317,2119.0,2117.8,6.03529991]
[1770539819356,0.00477317,2119.0,2118.0,4.03950929]
[1770539819555,0.00114462,2119.0,2118.3,0.23624]
[1770539820658,2.19418421,2119.0,2117.7,4.27580929]
[1770539820846,0.00114462,2119.0,2117.8,4.03950929]
[1770539821046,2.19418421,2119.0,2117.9,4.03950929]
[1770539821244,2.19418421,2119.0,2117.9,8.48068474]
[1770539821647,0.00114462,2119.0,2118.0,14.58792653]
[1770539821857,2.19418421,2119.0,2118.1,4.44117545]
[1770539822046,2.19418421,2119.0,2117.6,31.29682929]
[1770539822251,2.19418421,2119.0,2117.7,4.44064986]
[1770539822452,2.19418421,2119.0,2117.9,6.43544802]
[1770539822652,2.19418421,2119.0,2117.9,0.23628]
[1770539822855,2.19418421,2119.0,2117.5,31.07650929]
[1770539823052,2.19418421,2119.0,2117.6,8.47883467]
[1770539823256,2.19418421,2119.0,2117.6,14.61305075]
[1770539823456,2.19418421,2119.0,2117.7,4.43932538]
[1770539823854,2.19418421,2119.0,2117.7,4.67562538]
[1770539824153,2.19418421,2119.0,2117.5,4.03950929]
[1770539824362,2.19418421,2119.0,2117.5,27.071]
[1770539825156,2.43035421,2119.0,2117.3,0.00492518]
[1770539825455,2.43035421,2119.0,2117.3,4.45800116]
[1770539825853,2.43035421,2119.0,2117.3,8.49751045]
[1770539826165,1.91695187,2118.6,2117.3,0.00492518]
[1770539826570,1.91504069,2118.4,2117.3,0.00492518]
[1770539827465,1.91504069,2118.4,2117.5,4.03950929]
[1770539827768,1.91504069,2118.4,2117.5,8.50237471]
[1770539828664,1.91493415,2118.4,2117.6,14.85783753]
[1770539828864,1.91493415,2118.4,2117.7,4.46286542]
[1770539829268,1.91493415,2118.4,2117.6,0.23631]
[1770539829469,40.8,2118.5,2117.6,8.73270634]
[1770539829661,1.91177259,2118.4,2117.7,4.45688705]
[1770539829971,1.91177259,2118.4,2117.4,4.03950929]
[1770539830170,1.91177259,2118.4,2117.4,8.49716223]
[1770539830470,1.91177259,2118.4,2117.3,0.00492518]
[1770539831770,1.90956081,2118.2,2116.6,4.03950929]
[1770539831970,1.90956081,2117.8,2116.4,4.03950929]
[1770539832174,1.90956081,2117.6,2116.4,8.50210826]
[1770539832472,1.90956081,2117.6,2116.5,4.46259897]
[1770539832672,1.90956081,2117.6,2116.5,0.00455196]
[1770539834471,42.70606929,2117.7,2116.6,10.23179011]
[1770539834665,42.70606929,2117.7,2116.7,4.46018548]
[1770539835063,30.77022,2118.5,2116.7,4.46018548]
[1770539835064,1.90606929,2118.0,2117.1,4.03950929]
[1770539835262,1.90606929,2118.0,2116.9,4.03950929]
[1770539835465,1.90533704,2117.8,2116.8,4.03950929]
[1770539835974,1.90533704,2117.8,2116.8,8.49913688]
[1770539836175,1.90533704,2117.8,2116.9,4.45962759]